Cogmind - Beta 10 @@@ ROGUE MODE // 2020.09.18 @ 21:01:37 Player: 3.14 Result: Self-destructed Performance ------------- Evolutions (9) 4500 Regions Visited (21) 4200 Robots Destroyed (286) 1430 Value Destroyed (15703) 15703 Prototype IDs (51) 1020 Alien Tech Used (0) 0 Bonus (12082) 12082 TOTAL SCORE: 38935 Bonus ------- High Alert Combat Kills 5619 Follower Combat Kills 1060 Aligned with FarCom 300 Met Warlord at Base 500 MAIN.C Attacked Warlord 500 A7 Reached Mainframe 300 Met Warlord at Research 2000 Invited to Help at Command 2000 Friendly Fire -197 Cogmind --------- Core Integrity 1519/1600 Matter 251/300 Energy 98/720 System Corruption 19% Temperature Cool (0) Movement Walking (120) Location -1/Command Parts ------- > --- POWER (3) -------- Cooled Antimatter Reactor Light Quantum Reactor Improved Quantum Reactor > --- PROPULSION (5) --- Centrium Leg Centrium Leg Centrium Leg Centrium Leg Centrium Leg > --- UTILITY (15) ----- Advanced Heat Sink Advanced Heat Sink Lightpack 2.0 Advanced Target Analyzer Quantum Capacitor Advanced Transmission Jammer Centrium Heavy Armor Plating Advanced Force Field Advanced Hacking Suite > --- WEAPON (2) ------- Enhanced Nova Cannon Nanosword > --- INVENTORY (24) --- Reinforced Antimatter Reactor Centrium Leg Energy Well (500) Energy Well (500) Experimental Armor Integrity Analyzer Quantum Capacitor Centrium Heavy Armor Plating Centrium Heavy Armor Plating Advanced Powered Armor Improved Focal Shield EM Disruption Field Advanced Force Field Advanced Force Field Advanced Hacking Suite System Backup Module Nova Cannon Nova Cannon Nova Cannon Enhanced Nova Cannon Gamma Bomb Array Peak State ------------ > --- POWER ------------ Light Quantum Reactor Light Quantum Reactor Improved Quantum Reactor > --- PROPULSION ------- Biometal Leg Centrium Leg Centrium Leg Centrium Leg Centrium Leg > --- UTILITY ---------- Coolant Network Lightpack 2.0 Advanced Target Analyzer Advanced Core Analyzer Quantum Capacitor Advanced Transmission Jammer Centrium Heavy Armor Plating Advanced Powered Armor Thermal Barrier EM Disruption Field Advanced Force Field > --- WEAPON ----------- Enhanced Nova Cannon Nanosword > --- INVENTORY -------- Reinforced Antimatter Reactor Biometal Leg Centrium Leg Energy Well Energy Well Experimental Armor Integrity Analyzer Advanced Weapon Cycler Advanced Transmission Jammer Advanced Transmission Jammer Centrium Heavy Armor Plating Centrium Heavy Armor Plating Focal Shield Advanced Force Field Advanced Force Field System Backup Module HERF Cannon Compact HERF Cannon Heavy Neutron Cannon Nova Cannon Nova Cannon Enhanced Nova Cannon Gamma Bomb Array [Rating: 234] Favorites ----------- Power Light Quantum Reactor Engine Heavy Deuterium Engine Power Core Micro Nuclear Core Reactor Light Quantum Reactor Propulsion Centrium Leg Treads Light Treads Leg Centrium Leg Utility Lightpack 2.0 Device Advanced Transmission Jammer Storage Lightpack 2.0 Processor Advanced Targeting Computer Hackware Advanced Hacking Suite Protection Centrium Heavy Armor Plating Weapon Proton Cannon Energy Gun EM Pulse Gun Energy Cannon Proton Cannon Ballistic Gun Heavy Assault Rifle Launcher Grenade Launcher Slashing Weapon Nanosword Build | -11 -10 -10 -10 -9 -8 -7 -6 -5 -5 -5 -5 -4 -4 -4 -4 -4 -4 -3 -2 -1 -1 ------- Run | Scr Mat Min Exi Min Mat Fac Fac Fac Upp Upp War Pro Fac Ext Cet Arc Hub Res Res Acc Com Slots Evolved 18 | . . . . . 4 2 2 2 . . . . 2 . . . . 2 2 2 . Power 2 | . . . . . . 1 . . . . . . . . . . . 1 . . . Propulsion 3 | . . . . . 1 . . . . . . . 1 . . . . . . 1 . Utility 13 | . . . . . 3 1 2 2 . . . . 1 . . . . 1 2 1 . Weapon . | . . . . . . . . . . . . . . . . . . . . . . Parts Attached 429 | 7 6 . 2 5 39 7 23 8 11 10 18 17 9 25 6 . 14 113 39 34 36 Power 29 | 1 . . . 1 2 1 5 . . . 1 . . . . . . 7 5 2 4 Engine 5 | 1 . . . 1 . . 3 . . . . . . . . . . . . . . Core 6 | . . . . . 2 1 2 . . . . . . . . . . 1 . . . Reactor 18 | . . . . . . . . . . . 1 . . . . . . 6 5 2 4 Propulsion 68 | 2 . . . . 11 3 . . . . 5 5 1 8 . . . 7 17 7 2 Treads 3 | 2 . . . . 1 . . . . . . . . . . . . . . . . Leg 65 | . . . . . 10 3 . . . . 5 5 1 8 . . . 7 17 7 2 Wheel . | . . . . . . . . . . . . . . . . . . . . . . Hover . | . . . . . . . . . . . . . . . . . . . . . . Flight . | . . . . . . . . . . . . . . . . . . . . . . Utility 175 | 1 4 . 2 . 8 2 8 6 7 3 6 8 4 6 4 . 5 45 14 17 25 Device 121 | . . . . . 2 1 2 1 5 3 4 7 2 5 2 . 3 37 10 14 23 Storage 10 | 1 2 . 2 . . . 2 1 . . . . . . . . . . 1 1 . Processor 12 | . . . . . 2 . 1 2 . . . . . 1 . . . 3 2 1 . Hackware 1 | . . . . . . . . . . . . . . . . . . . . . 1 Protection 31 | . 2 . . . 4 1 3 2 2 . 2 1 2 . 2 . 2 5 1 1 1 Artifact . | . . . . . . . . . . . . . . . . . . . . . . Weapon 157 | 3 2 . . 4 18 1 10 2 4 7 6 4 4 11 2 . 9 54 3 8 5 Energy Gun 14 | 3 1 . . 1 4 . 2 1 . 2 . . . . . . . . . . . Energy Cannon 104 | . . . . . 1 1 5 1 3 5 6 3 2 11 2 . 7 45 2 5 5 Ballistic Gun 12 | . . . . 1 10 . 1 . . . . . . . . . . . . . . Ballistic Cannon . | . . . . . . . . . . . . . . . . . . . . . . Launcher 16 | . 1 . . 2 2 . 1 . 1 . . 1 . . . . 1 4 . 3 . Special Weapon . | . . . . . . . . . . . . . . . . . . . . . . Impact Weapon . | . . . . . . . . . . . . . . . . . . . . . . Slashing Weapon 11 | . . . . . 1 . 1 . . . . . 2 . . . 1 5 1 . . Piercing Weapon . | . . . . . . . . . . . . . . . . . . . . . . Special Melee Weapon . | . . . . . . . . . . . . . . . . . . . . . . Unidentified Prototypes 22 | . . . . . 1 . 2 . . . 4 . . . 1 . 1 6 6 . 1 Parts Lost 13 | . 1 . . . 6 . 1 . . . . . . . . . . 1 . . 4 Power . | . . . . . . . . . . . . . . . . . . . . . . Propulsion 3 | . . . . . 3 . . . . . . . . . . . . . . . . Utility 9 | . . . . . 3 . 1 . . . . . . . . . . 1 . . 4 Weapon 1 | . 1 . . . . . . . . . . . . . . . . . . . . Highest Loss Streak 3 | . 1 . . . 2 . 1 . . . . . . . . . . 1 . . 3 Average Slot Usage (%) 89 | . 92 85 85 96 99 100 98 96 94 93 89 88 84 84 84 84 84 88 81 83 86 Engine 3 | . 14 14 14 14 4 . 5 11 11 11 5 . . . . . . . . . . Core 1 | . . . . . 4 15 6 . . . . . . . . . . 1 . . . Reactor 5 | . . . . . . . . . . . 2 5 5 5 5 5 5 8 13 12 12 Treads 3 | . 28 28 28 28 . . . . . . . . . . . . . . . . . Leg 17 | . . . . . 26 23 20 17 17 17 17 17 21 21 21 21 21 19 17 19 20 Device 17 | . . . . . 8 15 12 10 19 17 17 17 15 19 21 21 21 25 21 23 26 Storage 8 | . 20 28 28 28 18 15 13 8 5 5 5 5 5 5 5 5 5 4 4 4 4 Processor 10 | . . . . . 4 7 12 17 17 17 17 17 15 15 15 15 15 14 11 8 8 Protection 7 | . 7 . . . 13 7 12 16 8 11 10 10 9 6 5 5 5 4 3 8 7 Energy Gun 1 | . 21 14 14 7 2 . 1 1 . . . . . . . . . . . . . Energy Cannon 6 | . . . . . . 15 9 8 8 10 9 10 7 10 10 10 9 8 4 3 4 Ballistic Gun 1 | . . . . 10 14 . . . . . . . . . . . . . . . . Slashing Weapon 1 | . . . . . . . 1 . . . . . 2 . . . . . 4 4 4 Naked Turns . | . . . . . . . . . . . . . . . . . . . . . . Heaviest Build 134 | 10 37 37 69 75 82 91 113 112 59 57 72 70 85 91 90 85 87 121 119 134 134 Greatest Support 150 | 40 40 20 20 20 35 54 54 54 54 54 58 70 90 100 100 100 100 103 118 150 150 Greatest Overweight (x) 3 | . 1 1 3 3 3 2 2 2 1 1 1 1 . . . . . 1 1 1 . Average Overweight (x) . | . . 1 2 3 2 1 1 1 . . . . . . . . . . . . . Largest Inventory Capacity 40 | 6 16 16 20 20 20 20 20 40 24 24 24 24 24 24 24 24 24 24 24 24 24 Average Capacity 22 | 4 12 16 19 20 20 20 20 21 24 24 24 24 24 24 24 24 24 24 24 24 24 Most Carried 24 | 4 12 13 16 20 20 20 20 21 22 22 24 24 24 24 24 24 24 24 24 24 24 Average Carried 21 | 2 9 12 14 17 19 18 19 19 20 21 23 24 23 23 24 24 23 23 23 23 23 Final Capacity 24 | 6 16 16 20 20 20 20 20 24 24 24 24 24 24 24 24 24 24 24 24 24 24 Final Carried 24 | 4 12 13 16 20 20 20 20 20 22 21 24 24 24 24 24 24 24 24 24 24 23 Class Distribution -------------------- 40% | Generator-Mutant 38% | Hauler-Mutant 15% | Scavenger-Mutant 4% | Mutant Dominant Class ---------------- Mutant | -10/Materials Mutant | -10/Mines Hauler-Mutant | -10/Exiles Hauler-Mutant | -9/Mines Hauler-Mutant | -8/Materials Hauler-Mutant | -7/Factory Hauler-Mutant | -6/Factory Hauler-Mutant | -5/Factory Hauler-Mutant | -5/Upper Caves Hauler-Mutant | -5/Upper Caves Hauler-Mutant | -5/Warlord Hauler-Mutant | -4/Proximity Caves Scavenger-Mutant | -4/Factory Scavenger-Mutant | -4/Extension Scavenger-Mutant | -4/Cetus Scavenger-Mutant | -4/Archives Scavenger-Mutant | -4/Hub_04(d) Generator-Mutant | -3/Research Generator-Mutant | -2/Research Generator-Mutant | -1/Access Generator-Mutant | -1/Command Resources | -11 -10 -10 -10 -9 -8 -7 -6 -5 -5 -5 -5 -4 -4 -4 -4 -4 -4 -3 -2 -1 -1 ----------- Run | Scr Mat Min Exi Min Mat Fac Fac Fac Upp Upp War Pro Fac Ext Cet Arc Hub Res Res Acc Com Matter Collected 5168 | 270 50 3 . 192 604 . 209 152 90 130 180 200 70 260 60 10 74 1416 390 375 433 Remotely . | . . . . . . . . . . . . . . . . . . . . . . Salvage Created 18282 | 69 157 . . 228 454 . 553 277 70 143 . 523 264 1249 164 312 774 6642 1094 3136 2173 Parts 710 | 3 4 . . 8 35 . 36 11 4 2 . 15 9 36 3 18 30 246 31 119 100 Haulers Intercepted 4 | . . . . . . . . . . . . . . . . . 3 . . 1 . Recyclers Shooed 7 | . . . . . 1 . 2 . . . . . . . . . . 3 . 1 . Parts Field Recycled . | . . . . . . . . . . . . . . . . . . . . . . Retrieved Matter . | . . . . . . . . . . . . . . . . . . . . . . Parts Self-Destructed 63 | . . . . . . . . . 3 . 53 7 . . . . . . . . . Prevented 38 | . . . . . . . . . 1 3 20 14 . . . . . . . . . Kills | -11 -10 -10 -10 -9 -8 -7 -6 -5 -5 -5 -5 -4 -4 -4 -4 -4 -4 -3 -2 -1 -1 ------- Run | Scr Mat Min Exi Min Mat Fac Fac Fac Upp Upp War Pro Fac Ext Cet Arc Hub Res Res Acc Com Combat Hostiles Destroyed 232 | . 3 . . 18 15 . 8 2 1 2 . 6 3 12 2 3 7 73 15 39 23 Melee 4 | . . . . . . . . . . . . . . . . . . . . . 4 Guns 16 | . 2 . . 3 6 . 3 1 . 1 . . . . . . . . . . . Cannons 98 | . . . . . . . 3 1 1 1 . 2 3 8 1 1 3 34 10 21 9 AOE 37 | . 1 . . 15 8 . . . . . . 1 . . . . 1 6 . 5 . Classes Destroyed 20 | 2 1 . . 3 3 . 1 . . . . . 1 1 . . 1 4 2 . 1 Worker 17 | 1 1 . . . 2 . . . . . . . . . . . 2 8 . 2 1 Builder 6 | . . . . . . . . . . . . . . . . . . 6 . . . Tunneler 2 | . . . . . 1 . . . . . . . . . . . . 1 . . . Hauler 4 | . . . . . . . . . . . . . . . . . 3 . . 1 . Recycler 12 | 1 . . . 1 . . 1 1 . . . . . 2 . . . 3 . 1 2 Operator 4 | . . . . . . . . . . . . . 1 1 . . . 1 . . 1 Watcher 9 | . . . . . . . . . . . . . . 1 . . . 4 . 1 3 Swarmer 30 | . . . . 4 8 . 2 . . . . . . 1 . . 1 3 2 9 . Saboteur 1 | . . . . . . . . . . . . . . . . . . . . . 1 Grunt 69 | . 3 . . 1 2 . . . . . . 4 2 8 1 . . 28 7 9 4 Brawler 8 | . . . . . . . . . . . . . . . . . . 5 1 1 1 Duelist 12 | . . . . 1 . . 1 . . . . . . . . . . 5 1 1 3 Protector 3 | . . . . . . . . . . . . . . . . . . 2 . 1 . Sentry 26 | . . . . . 2 . 1 . . 1 . 1 1 1 . 3 . 9 . 4 3 Hunter 21 | . . . . . 3 . 2 . 1 . . 1 . 2 . . 4 2 2 2 2 Programmer 46 | . . . . . . . 2 2 . 1 . . . . . . 2 18 . 12 9 Behemoth 1 | . . . . . . . . . . . . . . . . . . 1 . . . Cetus Guard 1 | . . . . . . . . . . . . . . . 1 . . . . . . Striker 1 | . . . . . . . . . . . . . . . . . . . 1 . . Executioner 1 | . . . . . . . . . . . . . . . . . . . 1 . . Assembled 12 | . . . . 12 . . . . . . . . . . . . . . . . . Best Kill Streak 11 | 1 2 . . 10 6 . 2 3 1 1 . 4 2 4 1 3 5 11 6 9 5 Combat Bots Only 9 | . 1 . . 9 4 . 2 2 1 1 . 4 2 4 1 3 4 7 6 8 5 Max Kills in Single Turn 6 | 1 1 . . 4 4 . 1 1 1 1 . 1 1 2 1 1 1 6 1 3 2 Gunslinging . | . . . . . . . . . . . . . . . . . . . . . . Exploded 4 | . 1 . . 4 3 . . . . . . 1 . . . . 1 3 . 3 . Melee 1 | . . . . . . . . . . . . . . . . . . . . . 1 Uniques/NPCs Destroyed . | . . . . . . . . . . . . . . . . . . . . . . Combat | -11 -10 -10 -10 -9 -8 -7 -6 -5 -5 -5 -5 -4 -4 -4 -4 -4 -4 -3 -2 -1 -1 -------- Run | Scr Mat Min Exi Min Mat Fac Fac Fac Upp Upp War Pro Fac Ext Cet Arc Hub Res Res Acc Com Damage Taken 7850 | . 223 . . 129 1058 . 500 78 32 60 88 265 58 210 88 . 216 2527 252 1051 1015 Core 542 | . 10 . . 12 87 . 86 . 11 14 12 33 8 . 36 . . 128 24 56 25 Absorbed by Shields 5020 | . . . . . . . 187 80 34 23 33 100 23 78 32 . 77 2027 275 1026 1025 Core Remaining (%) 93 | 100 . . . 91 84 100 89 . . . . 93 . . . . 96 90 98 . . Volleys Fired 847 | 2 20 . . 17 51 . 28 6 1 7 13 14 6 50 11 6 19 234 82 186 94 Largest 2 | 2 2 . . 2 2 . 2 2 2 2 2 2 2 2 2 2 2 2 1 1 1 Hottest 223 | 90 90 . . 63 63 . 140 140 150 178 180 150 150 200 150 150 196 223 113 120 120 Shots Fired 1254 | 4 31 . . 23 93 . 56 12 2 14 20 23 12 97 21 12 34 438 82 186 94 Gun 163 | 4 31 . . 12 84 . 21 6 . 5 . . . . . . . . . . . Cannon 1050 | . . . . . 5 . 35 6 2 9 20 18 12 97 21 12 30 429 82 178 94 Launcher 41 | . . . . 11 4 . . . . . . 5 . . . . 4 9 . 8 . Special . | . . . . . . . . . . . . . . . . . . . . . . Kinetic 77 | . . . . 6 71 . . . . . . . . . . . . . . . . Thermal 566 | 4 18 . . . . . 42 12 . 10 19 . . 25 1 . 4 219 41 132 39 Explosive 15 | . . . . 11 4 . . . . . . . . . . . . . . . . Electromagnetic 596 | . 13 . . 6 18 . 14 . 2 4 1 23 12 72 20 12 30 219 41 54 55 Robot Hit Streak 29 | 2 9 . . 6 22 . 29 8 4 8 9 7 4 19 7 6 10 26 8 15 10 Robot Miss Streak 4 | 1 4 . . 3 3 . 2 1 . 1 1 2 1 2 1 1 3 3 2 4 2 Penetration Max . | . . . . . . . . . . . . . . . . . . . . . . Secondary Targets . | . . . . . . . . . . . . . . . . . . . . . . Capacitor 348 | . . . . . . . . . . . . . . . . . . . 82 178 88 Shots Hit Robots 854 | 2 18 . . 10 75 . 47 8 2 11 1 16 9 45 16 10 22 303 50 121 88 Core Hits 508 | 2 8 . . 33 29 . 22 5 2 5 1 12 7 25 6 8 18 167 23 95 40 Critical Hits 74 | . . . . . . . 1 1 . 3 . 2 2 . 3 1 3 27 7 14 10 Critical Kills 18 | . . . . . . . . 1 . 2 . . 2 . 1 1 1 5 1 1 3 Critical Parts Destroyed 46 | . . . . . . . 1 . . 1 . 1 . . 2 . 1 19 5 10 6 Melee Attacks 61 | . . . . . 1 . 3 . . . . . 3 . . . 1 11 . 1 41 Impact . | . . . . . . . . . . . . . . . . . . . . . . Slashing 61 | . . . . . 1 . 3 . . . . . 3 . . . 1 11 . 1 41 Piercing . | . . . . . . . . . . . . . . . . . . . . . . Sneak Attacks 2 | . . . . . . . . . . . . . . . . . . . . . 2 Combat Hostiles 1 | . . . . . . . . . . . . . . . . . . . . . 1 Follow-up Attacks . | . . . . . . . . . . . . . . . . . . . . . . Damage Inflicted 37678 | 22 382 2 . 1046 1464 . 1195 200 67 370 39 939 338 1756 554 261 1242 14237 2060 6945 4559 Guns 1962 | 22 287 . . 99 856 . 438 143 . 117 . . . . . . . . . . . Cannons 27746 | . . . . . 117 . 707 57 67 253 39 392 338 1607 554 261 599 12070 2060 5807 2818 Explosions 6250 | . 95 . . 941 478 . 41 . . . . 547 . 149 . . 643 2138 . 1138 80 Melee 1661 | . . . . . . . . . . . . . . . . . . . . . 1661 Ramming 59 | . . 2 . 6 13 . 9 . . . . . . . . . . 29 . . . Kinetic 789 | . . . . 47 742 . . . . . . . . . . . . . . . . Thermal 16091 | 22 243 . . . . . 908 200 . 289 39 174 . 189 . . 311 7304 874 4320 1218 Explosive 1419 | . . . . 941 478 . . . . . . . . . . . . . . . . Electromagnetic 17659 | . 139 . . 52 231 . 278 . 67 81 . 765 338 1567 554 261 931 6904 1186 2625 1680 Impact . | . . . . . . . . . . . . . . . . . . . . . . Slashing 1661 | . . . . . . . . . . . . . . . . . . . . . 1661 Piercing . | . . . . . . . . . . . . . . . . . . . . . . Highest Corruption 19 | . . . . . . . . 2 2 . 5 . . . . . . 9 . 4 19 Average Corruption 3 | . . . . . . . . 1 1 . 4 . . . . . . 4 . 1 3 Corruption Purged 15 | . . . . . . . . . 2 . . . . . . . . 4 . 5 4 Effects 105 | . . . . . . . . . 1 . 2 . . . . . . 72 . 6 24 Message Errors 19 | . . . . . . . . . . . . . . . . . . 14 . . 5 Matter Fused 30 | . . . . . . . . . . . . . . . . . . 19 . 1 10 Heat Flow Errors 11 | . . . . . . . . . . . 1 . . . . . . 5 . 2 3 Energy Discharges 12 | . . . . . . . . . . . . . . . . . . 8 . . 4 Data Loss (minor) 16 | . . . . . . . . . 1 . 1 . . . . . . 12 . 2 . Misfires 2 | . . . . . . . . . . . . . . . . . . 2 . . . Targeting Errors 14 | . . . . . . . . . . . . . . . . . . 11 . 1 2 Weapon Failures 1 | . . . . . . . . . . . . . . . . . . 1 . . . Overload Shots . | . . . . . . . . . . . . . . . . . . . . . . Overflow Damage 1364 | . 10 . . 33 15 . 38 . . . . 50 9 21 40 . 17 462 131 283 255 Projectiles 1054 | . . . . . . . 27 . . . . . 9 21 40 . 1 438 131 281 106 Explosions 161 | . 10 . . 33 15 . 11 . . . . 50 . . . . 16 24 . 2 . Melee 149 | . . . . . . . . . . . . . . . . . . . . . 149 Knockbacks . | . . . . . . . . . . . . . . . . . . . . . . Impact . | . . . . . . . . . . . . . . . . . . . . . . Kinetic . | . . . . . . . . . . . . . . . . . . . . . . Secondary . | . . . . . . . . . . . . . . . . . . . . . . Self-Inflicted Damage 268 | . . . . 12 . . . . . . . . . 25 . . . 115 . 35 81 Shots 16 | . . . . 1 . . . . . . . . . 1 . . . 7 . 6 1 Rammed 4 | . . 1 . 2 . . . . . . . . . . . . . 1 . . . Targets Rammed 8 | 1 . 1 . 2 1 . 1 . . . . . . . . . . 2 . . . Kicked 3 | . . . . . 1 . 1 . . . . . . . . . . 1 . . . Crushed 1 | 1 . . . . . . . . . . . . . . . . . . . . . Highest Temperature 381 | 30 381 . . 15 17 . 36 15 6 165 249 5 7 93 15 . 39 325 68 160 318 Average Temperature 71 | 16 205 . . 4 10 . 15 7 4 65 68 2 3 31 7 . 26 82 27 44 97 Received Heat Transfer 1241 | . 129 . . 38 330 . . . . 6 24 60 15 51 33 . . 319 56 92 88 Effects 6 | . 5 . . . . . . . . . . . . . . . . 1 . . . Shutdowns 2 | . 2 . . . . . . . . . . . . . . . . . . . . Energy Bleed 1 | . . . . . . . . . . . . . . . . . . 1 . . . Matter Decay 1 | . 1 . . . . . . . . . . . . . . . . . . . . Short Circuit 2 | . 2 . . . . . . . . . . . . . . . . . . . . Siege Activations . | . . . . . . . . . . . . . . . . . . . . . . Robots Corrupted 78 | . . . . . 1 . 2 . . . . 3 . 5 1 2 4 32 5 12 11 Combat Hostiles 74 | . . . . . 1 . 2 . . . . 3 . 4 1 2 3 31 5 12 10 Parts Fried 203 | . . . . . 1 . 2 . . 1 . 9 5 22 4 2 10 84 15 25 23 Impact Corruptions . | . . . . . . . . . . . . . . . . . . . . . . Robots Melted 3 | . . . . . . . . . . . . . . . . . . 2 . 1 . Combat Hostiles 3 | . . . . . . . . . . . . . . . . . . 2 . 1 . Parts Melted 68 | . . . . . . . 4 1 . 3 . . . . . . . 33 . 24 3 Heat Transferred 14039 | 62 435 . . . . . 1382 259 . 348 25 100 . 225 . . 350 6082 688 3182 901 Parts Sabotaged 1 | . . . . . . . . . . . . . . . . . . . . . 1 Parts Stolen . | . . . . . . . . . . . . . . . . . . . . . . Parts Stripped . | . . . . . . . . . . . . . . . . . . . . . . Power Chain Reactions 11 | . 1 . . . . . 1 . . . . 1 . 1 . . 1 5 . . 1 Missiles Intercepted . | . . . . . . . . . . . . . . . . . . . . . . Alert | -11 -10 -10 -10 -9 -8 -7 -6 -5 -5 -5 -5 -4 -4 -4 -4 -4 -4 -3 -2 -1 -1 ------- Run | Scr Mat Min Exi Min Mat Fac Fac Fac Upp Upp War Pro Fac Ext Cet Arc Hub Res Res Acc Com Peak Influence 1859 | 5 134 52 . 127 196 64 156 98 . . . . 123 329 652 350 482 1859 1337 1202 1191 Initial 1039 | . 6 52 . . . 40 . 28 . . . . 12 . 184 260 122 151 1039 696 544 Average 519 | 2 70 52 . 22 78 34 36 38 . . . . 44 102 437 342 332 723 1187 880 894 Maximum Alert Level 5 | . . . . . . . . . . . . . . 1 2 1 2 5 4 4 4 Low Security (%) 42 | 100 100 100 . 100 100 100 100 100 . . . . 100 94 14 . 18 12 . . . Level 1 8 | . . . . . . . . . . . . . . 5 36 100 31 20 . . . Level 2 11 | . . . . . . . . . . . . . . . 49 . 50 26 . 4 31 Level 3 19 | . . . . . . . . . . . . . . . . . . 10 9 92 50 Level 4 16 | . . . . . . . . . . . . . . . . . . 24 90 2 17 Level 5 1 | . . . . . . . . . . . . . . . . . . 6 . . . High Security . | . . . . . . . . . . . . . . . . . . . . . . Max Security . | . . . . . . . . . . . . . . . . . . . . . . Squads Dispatched 56 | . 1 . . . 3 1 5 1 . . . . 1 2 . . 3 18 . 13 8 Investigation 8 | . . . . . 1 . . . . . . . 1 2 . . . 1 . . 3 Extermination 21 | . . . . . . 1 2 1 . . . . . . . . 1 7 . 6 3 Reinforcement 13 | . 1 . . . 2 . 3 . . . . . . . . . 2 2 . 3 . Assault 14 | . . . . . . . . . . . . . . . . . . 8 . 4 2 Garrison . | . . . . . . . . . . . . . . . . . . . . . . Intercept . | . . . . . . . . . . . . . . . . . . . . . . Construction Impeded 6 | . . . . . . . 2 . . . . . . . . . 1 2 . 1 . Haulers Reinforced 1 | . . . . . . . . . . . . . . . . . . . . 1 . Stealth | -11 -10 -10 -10 -9 -8 -7 -6 -5 -5 -5 -5 -4 -4 -4 -4 -4 -4 -3 -2 -1 -1 --------- Run | Scr Mat Min Exi Min Mat Fac Fac Fac Upp Upp War Pro Fac Ext Cet Arc Hub Res Res Acc Com Distress Signals 10 | . 1 . . . 1 . . . . . . . . 1 1 . 1 1 3 1 . Communications Jammed 321 | . . . . . . . . . . . . . . 28 143 . 10 64 6 46 24 Distress Signals 319 | . . . . . . . . . . . . . . 28 143 . 10 62 6 46 24 Times Spotted 419 | . 11 . . 19 21 . 11 3 1 2 24 7 5 26 9 2 10 127 38 60 43 Peak Tracking Total 12 | . 3 . . 6 4 1 5 3 1 1 6 4 2 4 5 1 4 9 6 12 8 Tactical Retreats 27 | . 2 . . 1 2 . 1 . . . . 1 1 2 1 . 1 7 2 5 1 Traps | -11 -10 -10 -10 -9 -8 -7 -6 -5 -5 -5 -5 -4 -4 -4 -4 -4 -4 -3 -2 -1 -1 ------- Run | Scr Mat Min Exi Min Mat Fac Fac Fac Upp Upp War Pro Fac Ext Cet Arc Hub Res Res Acc Com Traps Triggered 21 | . . . . . . . 2 . . . . . . 2 . . . 13 . 3 1 Indirectly 7 | . . . . . . . . . . . . . . . . . . 7 . . . Trap Hack Attempts . | . . . . . . . . . . . . . . . . . . . . . . Triggered . | . . . . . . . . . . . . . . . . . . . . . . Disarmed . | . . . . . . . . . . . . . . . . . . . . . . Reprogrammed . | . . . . . . . . . . . . . . . . . . . . . . Reused . | . . . . . . . . . . . . . . . . . . . . . . Traps Extracted . | . . . . . . . . . . . . . . . . . . . . . . Installed . | . . . . . . . . . . . . . . . . . . . . . . Triggered 14 | . . . . . . . . . 1 1 5 4 . . . . . 3 . . . Machines | -11 -10 -10 -10 -9 -8 -7 -6 -5 -5 -5 -5 -4 -4 -4 -4 -4 -4 -3 -2 -1 -1 ---------- Run | Scr Mat Min Exi Min Mat Fac Fac Fac Upp Upp War Pro Fac Ext Cet Arc Hub Res Res Acc Com Machines Disabled 27 | . 1 . . . 2 . . . . . 2 . . 6 2 1 1 5 2 2 3 Max in Single Turn 3 | . 1 . . . 1 . . . . . 1 . . 3 1 . . 1 1 1 2 Garrison Access 4 | . . . . . . . . . . . . . . . . . 1 1 2 . . Phase Generator 1 | . . . . . . . . . . . . . . . . . . . . . 1 Energy Cycler 2 | . . . . . . . . . . . . . . 2 . . . . . . . Machines Sabotaged . | . . . . . . . . . . . . . . . . . . . . . . Garrisons Compromised . | . . . . . . . . . . . . . . . . . . . . . . Overloaded Fab Kills . | . . . . . . . . . . . . . . . . . . . . . . Fab Network Shutdowns . | . . . . . . . . . . . . . . . . . . . . . . Hacking | -11 -10 -10 -10 -9 -8 -7 -6 -5 -5 -5 -5 -4 -4 -4 -4 -4 -4 -3 -2 -1 -1 --------- Run | Scr Mat Min Exi Min Mat Fac Fac Fac Upp Upp War Pro Fac Ext Cet Arc Hub Res Res Acc Com Machines Accessed 63 | . 1 . 2 . 6 3 2 1 . . . . 3 13 1 . 1 14 1 9 6 Terminals 52 | . 1 . . . 6 1 1 . . . . . 3 13 1 . . 11 . 9 6 Fabricators 3 | . . . . . . 1 . 1 . . . . . . . . . 1 . . . Repair Stations 2 | . . . . . . 1 1 . . . . . . . . . . . . . . Recycling Units . | . . . . . . . . . . . . . . . . . . . . . . Scanalyzers . | . . . . . . . . . . . . . . . . . . . . . . Garrison Access 4 | . . . . . . . . . . . . . . . . . 1 2 1 . . Total Hacks 137 | . 5 . 2 . 15 4 5 4 . . . . 8 34 2 . 1 29 1 16 11 Successful 56 | . 3 . 2 . 7 1 3 1 . . . . 2 16 . . 1 11 1 7 1 Failed 80 | . 1 . . . 8 3 2 3 . . . . 6 18 2 . . 18 . 9 10 Catastrophic 19 | . . . . . 2 . 1 . . . . . 2 . . . . 4 . 5 5 Database Lockouts 1 | . 1 . . . . . . . . . . . . . . . . . . . . Manual 63 | . 4 . 1 . 10 2 2 . . . . . 6 15 . . . 11 . 4 8 Terminals 119 | . 5 . . . 15 2 2 . . . . . 8 34 2 . . 24 . 16 11 Fabricators 7 | . . . . . . 1 . 4 . . . . . . . . . 2 . . . Repair Stations 4 | . . . . . . 1 3 . . . . . . . . . . . . . . Recycling Units . | . . . . . . . . . . . . . . . . . . . . . . Scanalyzers . | . . . . . . . . . . . . . . . . . . . . . . Garrison Access 5 | . . . . . . . . . . . . . . . . . 1 3 1 . . Terminal Hacks 33 | . 3 . 2 . 4 . . . . . . . 2 12 . . . 4 . 6 . Record 1 | . . . 1 . . . . . . . . . . . . . . . . . . Part Schematic 1 | . 1 . . . . . . . . . . . . . . . . . . . . Robot Analysis 3 | . 1 . . . . . . . . . . . 1 1 . . . . . . . Prototype ID Bank 4 | . 1 . . . 2 . . . . . . . . 1 . . . . . . . Open Door 10 | . . . . . . . . . . . . . . 7 . . . . . 3 . Level Access Points 1 | . . . . . . . . . . . . . . . . . . 1 . . . Branch Access Points 1 | . . . . . 1 . . . . . . . . . . . . . . . . Terminal Index 2 | . . . . . . . . . . . . . . 1 . . . 1 . . . Alert Level 1 | . . . . . . . . . . . . . . . . . . 1 . . . Unreport Threat 6 | . . . . . 1 . . . . . . . 1 1 . . . . . 3 . Recall Investigation 1 | . . . . . . . . . . . . . . 1 . . . . . . . Zone Layout 1 | . . . . . . . . . . . . . . . . . . 1 . . . EX-Prototype ID Bank 1 | . . . 1 . . . . . . . . . . . . . . . . . . Fabricator Hacks 2 | . . . . . . . . 1 . . . . . . . . . 1 . . . Build 2 | . . . . . . . . 1 . . . . . . . . . 1 . . . Repair Station Hacks 2 | . . . . . . . 2 . . . . . . . . . . . . . . Scan Component 1 | . . . . . . . 1 . . . . . . . . . . . . . . Repair 1 | . . . . . . . 1 . . . . . . . . . . . . . . Recycling Unit Hacks . | . . . . . . . . . . . . . . . . . . . . . . Scanalyzer . | . . . . . . . . . . . . . . . . . . . . . . Garrison Access Hacks 3 | . . . . . . . . . . . . . . . . . 1 1 1 . . Unlock Access 1 | . . . . . . . . . . . . . . . . . . . 1 . . Seal Access 2 | . . . . . . . . . . . . . . . . . 1 1 . . . Unauthorized Hacks 16 | . . . . . 3 1 1 . . . . . . 4 . . . 5 . 1 1 Terminals 16 | . . . . . 3 1 1 . . . . . . 4 . . . 5 . 1 1 Track 2 | . . . . . . . . . . . . . . . . . . 2 . . . Assimilate 2 | . . . . . . . . . . . . . . 2 . . . . . . . Botnet 11 | . . . . . 3 1 1 . . . . . . 2 . . . 2 . 1 1 Disrupt 1 | . . . . . . . . . . . . . . . . . . 1 . . . Fabricators . | . . . . . . . . . . . . . . . . . . . . . . Repair Stations . | . . . . . . . . . . . . . . . . . . . . . . Recycling Units . | . . . . . . . . . . . . . . . . . . . . . . Scanalyzers . | . . . . . . . . . . . . . . . . . . . . . . Garrison Access . | . . . . . . . . . . . . . . . . . . . . . . Data Cores Recovered 3 | . . . . . . . . . . . . . 1 . . . . 1 . . 1 Used 3 | . . . . . . . . . . . . . 1 . . . . 1 . . 1 Hacking Detections 53 | . . . . . 6 3 1 1 . . . . 3 11 1 . . 12 . 9 6 Full Trace Events 8 | . . . . . 1 . . . . . . . 1 2 . . . 1 . . 3 Feedback Events . | . . . . . . . . . . . . . . . . . . . . . . Feedback Blocked . | . . . . . . . . . . . . . . . . . . . . . . Robot Schematics Acquired . | . . . . . . . . . . . . . . . . . . . . . . Robots Built 2 | . . . . . . . . 2 . . . . . . . . . . . . . Matter 285 | . . . . . . . . 285 . . . . . . . . . . . . . Time 152 | . . . . . . . . 152 . . . . . . . . . . . . . Total Robot Build Rating 10 | . . . . . . . . 10 . . . . . . . . . . . . . Part Schematics Acquired 1 | . 1 . . . . . . . . . . . . . . . . . . . . Parts Built 2 | . . . . . . . . . . . . . . . . . . 2 . . . Matter 278 | . . . . . . . . . . . . . . . . . . 278 . . . Time 69 | . . . . . . . . . . . . . . . . . . 69 . . . Total Part Build Rating 18 | . . . . . . . . . . . . . . . . . . 18 . . . Parts Repaired 1 | . . . . . . . 1 . . . . . . . . . . . . . . Time 32 | . . . . . . . 32 . . . . . . . . . . . . . . Parts Recycled . | . . . . . . . . . . . . . . . . . . . . . . Recycled Matter . | . . . . . . . . . . . . . . . . . . . . . . Retrieved Matter . | . . . . . . . . . . . . . . . . . . . . . . Retrieved Components . | . . . . . . . . . . . . . . . . . . . . . . Parts Scanalyzed . | . . . . . . . . . . . . . . . . . . . . . . Part Schematics Acquired . | . . . . . . . . . . . . . . . . . . . . . . Parts Damaged . | . . . . . . . . . . . . . . . . . . . . . . Bothacking | -11 -10 -10 -10 -9 -8 -7 -6 -5 -5 -5 -5 -4 -4 -4 -4 -4 -4 -3 -2 -1 -1 ------------ Run | Scr Mat Min Exi Min Mat Fac Fac Fac Upp Upp War Pro Fac Ext Cet Arc Hub Res Res Acc Com Used RIF Installer . | . . . . . . . . . . . . . . . . . . . . . . Robots Hacked . | . . . . . . . . . . . . . . . . . . . . . . Non-combat . | . . . . . . . . . . . . . . . . . . . . . . Combat . | . . . . . . . . . . . . . . . . . . . . . . Robot Hacks Applied . | . . . . . . . . . . . . . . . . . . . . . . Relay Couplers Released 5 | . . . . . . . . . . . . . . . . . . . 5 . . Machine Destruction 1 | . . . . . . . . . . . . . . . . . . . 1 . . Programmers 4 | . . . . . . . . . . . . . . . . . . . 4 . . Robots Rewired 13 | . . . . . . . . . . . . . . 13 . . . . . . . Allies Hacked . | . . . . . . . . . . . . . . . . . . . . . . Hacks Repelled . | . . . . . . . . . . . . . . . . . . . . . . Allies | -11 -10 -10 -10 -9 -8 -7 -6 -5 -5 -5 -5 -4 -4 -4 -4 -4 -4 -3 -2 -1 -1 -------- Run | Scr Mat Min Exi Min Mat Fac Fac Fac Upp Upp War Pro Fac Ext Cet Arc Hub Res Res Acc Com Total Allies 32 | . . . . 3 . . . 2 . . . . . 27 . . . . . . . Largest Group 16 | . . . . 3 1 . . 2 2 . . . . 16 14 8 4 . . . . Highest-Rated Group 723 | . . . . 40 16 . . 28 28 . . . . 723 667 399 150 . . . . Highest-Rated Ally 156 | . . . . 16 16 . . 14 14 . . . . 156 156 156 49 . . . . Total Orders 2 | . . . . . . . . . 2 . . . . . . . . . . . . STAY 1 | . . . . . . . . . 1 . . . . . . . . . . . . ROAM 1 | . . . . . . . . . 1 . . . . . . . . . . . . Ally Attacks 199 | . . . . 17 3 . . . 2 . . . . 70 81 6 20 . . . . Total Damage 4909 | . . . . 180 28 . . . . . . . . 1801 2302 104 494 . . . . Kills 32 | . . . . . 1 . . . . . . . . 14 12 2 3 . . . . Allies Corrupted . | . . . . . . . . . . . . . . . . . . . . . . Allies Melted . | . . . . . . . . . . . . . . . . . . . . . . Intel | -11 -10 -10 -10 -9 -8 -7 -6 -5 -5 -5 -5 -4 -4 -4 -4 -4 -4 -3 -2 -1 -1 ------- Run | Scr Mat Min Exi Min Mat Fac Fac Fac Upp Upp War Pro Fac Ext Cet Arc Hub Res Res Acc Com Robot Analysis Total 3 | . 1 . . . . . . . . . . . 1 1 . . . . . . . Derelict Logs Recovered 2 | . . . . . . . . . 1 . . 1 . . . . . . . . . Drone Launches . | . . . . . . . . . . . . . . . . . . . . . . Drone Recoveries . | . . . . . . . . . . . . . . . . . . . . . . Exploration | -11 -10 -10 -10 -9 -8 -7 -6 -5 -5 -5 -5 -4 -4 -4 -4 -4 -4 -3 -2 -1 -1 ------------- Run | Scr Mat Min Exi Min Mat Fac Fac Fac Upp Upp War Pro Fac Ext Cet Arc Hub Res Res Acc Com Turns Passed 19813 | 104 357 250 656 941 1294 508 1342 409 974 463 693 618 281 1038 202 343 451 3670 1757 2116 1346 Spaces Moved 10660 | 53 165 138 310 388 375 275 675 232 529 247 366 389 174 541 108 54 318 1947 1170 1356 850 Core 2 | 2 . . . . . . . . . . . . . . . . . . . . . Treads 1052 | 51 165 138 310 388 . . . . . . . . . . . . . . . . . Legs 9606 | . . . . . 375 275 675 232 529 247 366 389 174 541 108 54 318 1947 1170 1356 850 Wheels . | . . . . . . . . . . . . . . . . . . . . . . Hover . | . . . . . . . . . . . . . . . . . . . . . . Flight . | . . . . . . . . . . . . . . . . . . . . . . Fastest Speed 50 | 50 160 180 180 220 180 150 150 120 120 120 120 110 115 112 112 112 112 102 115 118 120 Average Speed 139 | 155 175 180 210 220 180 178 159 159 147 149 144 120 115 112 112 112 112 127 127 118 120 Slowest Speed 220 | 160 180 180 220 220 210 180 180 180 150 150 153 153 115 115 112 112 112 142 150 147 120 Overloaded Moves . | . . . . . . . . . . . . . . . . . . . . . . Propulsion Burnouts . | . . . . . . . . . . . . . . . . . . . . . . Robots Hopped . | . . . . . . . . . . . . . . . . . . . . . . Cave-ins Triggered 1 | . . . . . . . . . . . . . . . . . . . . . 1 Exploration Rate (%) 40 | 5 32 39 70 67 31 11 25 7 61 45 50 51 7 61 57 68 26 56 43 39 33 Regions Visited 21 Branch Regions 12 Pre-discovered Areas 1 | . . . 1 . . . . . . . . . . . . . . . . . . Known Exits Taken 1 | . . . . . . . . . . . . . . . . . . 1 . . . Unknown Exits Taken 20 | 1 1 1 1 1 1 1 1 1 1 1 1 1 1 1 1 1 1 . 1 1 . Scrap Searched 5 | . . 1 . 2 . . . . 1 1 . . . . . . . . . . . Spaces Dug 76 | . . . . 21 1 . 3 . . . . . 3 4 . . 1 22 4 10 7 Terrain Destroyed 432 | . 3 . . 84 18 . 7 . . 1 1 17 3 49 . . 19 90 11 36 93 Melee 23 | . . . . . 1 . 3 . . . . . 3 . . . 1 11 . . 4 Projectile 126 | . . . . . . . . . . 1 1 . . 11 . . 1 50 11 36 15 AOE 283 | . 3 . . 84 17 . 4 . . . . 17 . 38 . . 17 29 . . 74 Terrain Rammed . | . . . . . . . . . . . . . . . . . . . . . . Walls Destroyed . | . . . . . . . . . . . . . . . . . . . . . . Machines Disabled . | . . . . . . . . . . . . . . . . . . . . . . Actions | -11 -10 -10 -10 -9 -8 -7 -6 -5 -5 -5 -5 -4 -4 -4 -4 -4 -4 -3 -2 -1 -1 --------- Run | Scr Mat Min Exi Min Mat Fac Fac Fac Upp Upp War Pro Fac Ext Cet Arc Hub Res Res Acc Com Total 14765 | 66 201 139 316 451 898 298 890 261 717 324 514 509 235 874 170 324 372 2812 1441 1849 1104 Wait 2293 | . . . 1 29 395 . 117 2 175 59 90 84 40 121 38 265 16 433 116 254 58 Move 10639 | 53 164 137 309 387 374 274 674 231 528 246 365 388 173 540 107 53 317 1946 1169 1355 849 Hop . | . . . . . . . . . . . . . . . . . . . . . . Pick Up 152 | 4 8 1 2 7 18 8 21 8 1 1 10 1 3 11 3 . 1 24 5 6 9 Fast Attach 71 | 6 2 . . 1 3 . 3 . . . 6 . . 2 2 . 3 19 14 3 7 Attach 41 | . 1 . . . 9 2 6 5 . 1 1 . 2 . . . 2 8 1 2 1 Detach 5 | . 1 . . . . . . . 1 . 2 . . . . . 1 . . . . Swap 317 | 1 3 . 2 4 27 5 14 3 11 9 11 17 7 23 4 . 9 86 24 29 28 Drop 224 | . 2 . 2 4 19 9 23 6 . 1 16 5 1 20 5 . 3 49 30 13 16 Fire 847 | 2 20 . . 17 51 . 28 6 1 7 13 14 6 50 11 6 19 234 82 186 94 Melee 61 | . . . . . 1 . 3 . . . . . 3 . . . 1 11 . 1 41 Ram . | . . . . . . . . . . . . . . . . . . . . . . Kick 4 | . . . . . 1 . 1 . . . . . . . . . . 2 . . . Crush 3 | . . 1 . 2 . . . . . . . . . . . . . . . . . Escape Stasis 11 | . . . . . . . . . . . . . . 10 . . . . . . 1 Rewire 97 | . . . . . . . . . . . . . . 97 . . . . . . . Trap . | . . . . . . . . . . . . . . . . . . . . . . Miscellaneous . | . . . . . . . . . . . . . . . . . . . . . . Route ------- -11/Scrapyard -10/Materials -10/Mines (discovered 3 exits: [*Mat x2] / *Exi) -10/Exiles -9/Mines -8/Materials (discovered 3 exits: *Fac / Sto x2) -7/Factory -6/Factory -5/Factory -5/Upper Caves -5/Upper Caves -5/Warlord -4/Proximity Caves -4/Factory -4/Extension (discovered 2 exits: *Res / *Cet) -4/Cetus -4/Archives (discovered 2 exits: *Res / *Hub) -4/Hub_04(d) -3/Research (discovered 5 exits: *Res x3 / *Tes x2) -2/Research (discovered 3 exits: *Acc x2 / [*Qua]) -1/Access -1/Command History --------- Turn | Location | Event 26 | -11/Scrapyard | Discovered new exit (range 15) 105 | -11/Scrapyard | Entered Materials 329 | -10/Materials | Build established: Mutant 368 | -10/Materials | Central database locked down 451 | -10/Materials | Discovered new exit (range 7) 462 | -10/Materials | Entered Mines 466 | -10/Mines | Met a Derelict bent on vengeance 532 | -10/Mines | Discovered new exit (range 9) 660 | -10/Mines | Discovered new exit (range 12) 705 | -10/Mines | Deemed a non-threat by the Exiles lab entrance 705 | -10/Mines | Discovered new exit (range 5) 712 | -10/Mines | Entered Exiles 757 | -10/Exiles | Met 8R-AWN 786 | -10/Exiles | Met EX-HEX 893 | -10/Exiles | Met EX-DEC 1005 | -10/Exiles | Learned location of Zion (-7) 1052 | -10/Exiles | Met EX-BIN 1082 | -10/Exiles | Aligned with FarCom system 1085 | -10/Exiles | Given EX-Vault access code 1135 | -10/Exiles | Opened EX-Vault 1149 | -10/Exiles | Build established: Hauler-Mutant 1155 | -10/Exiles | Found Lightpack 2.0 1199 | -10/Exiles | Warned to stay clear of 0b10 Research branches 1351 | -10/Exiles | Discovered new exit (range 10) 1368 | -10/Exiles | Left Exiles lab with Lightpack 2.0 1368 | -10/Exiles | Entered Mines 1508 | -9/Mines | Assembled infested the area 1553 | -9/Mines | Destroyed 9 combat bots 1733 | -9/Mines | Assisted by bots powering up and referring to "LRC-V3" 2260 | -9/Mines | A weapon hastily lodged in a ceiling crevice suddenly fell to the ground 2296 | -9/Mines | Discovered new exit (range 6) 2309 | -9/Mines | Entered Materials 2309 | -8/Materials | Accompanied by 1 ally 2309 | -8/Materials | Evolved 4 slots: Propulsion x1, Utility x3 3576 | -8/Materials | Discovered new exit (range 10) 3581 | -8/Materials | Identified exit to Storage 3603 | -8/Materials | Entered Factory 3603 | -7/Factory | Evolved 2 slots: Power x1, Utility x1 4063 | -7/Factory | Discovered new exit (range 3) 4111 | -7/Factory | Entered another Factory area 4111 | -6/Factory | Evolved 2 slots: Utility x2 4590 | -6/Factory | Repaired Lgt. EM Pulse Cannon 5419 | -6/Factory | Discovered new exit (range 15) 5453 | -6/Factory | Entered another Factory area 5453 | -5/Factory | Evolved 2 slots: Utility x2 5835 | -5/Factory | Fabricated E-15 Imp? 5844 | -5/Factory | Discovered new exit (range 13) 5862 | -5/Factory | Entered Upper Caves 5862 | -5/Upper Caves | Accompanied by 2 allies 6097 | -5/Upper Caves | Encountered a Warlord checkpoint 6120 | -5/Upper Caves | Spotted B-75 Beast 6561 | -5/Upper Caves | Learned Factory machine intel 6817 | -5/Upper Caves | Discovered new exit (range 14) 6836 | -5/Upper Caves | Entered another Upper Caves area 6858 | -5/Upper Caves | Attracted the attention of an 0b10 checkpoint 7280 | -5/Upper Caves | Discovered new exit (range 12) 7299 | -5/Upper Caves | Entered Warlord 7343 | -5/Warlord | System corruption cleaned by Quarantine Array 7599 | -5/Warlord | Met Warlord 7618 | -5/Warlord | Warlord's base attacked by MAIN.C 7656 | -5/Warlord | Found Prototype Reactor 7656 | -5/Warlord | Identified Vortex Chain Reactor 7683 | -5/Warlord | Found Prototype Processor 7686 | -5/Warlord | Found Prototype Device 7686 | -5/Warlord | Identified Thermal Barrier 7879 | -5/Warlord | Spotted B-86 Titan 7905 | -5/Warlord | Warlord forces counterattacked 7966 | -5/Warlord | Spotted Striker 7977 | -5/Warlord | Discovered new exit (range 12) 7992 | -5/Warlord | Entered Proximity Caves 8334 | -4/Proximity Caves | Identified Exp. Armor Integrity Analyzer 8451 | -4/Proximity Caves | Learned location of 1 exit from Upper Caves 8573 | -4/Proximity Caves | Discovered new exit (range 9) 8576 | -4/Proximity Caves | Attracted the attention of an 0b10 checkpoint 8610 | -4/Proximity Caves | Entered Factory 8610 | -4/Factory | Evolved 2 slots: Propulsion x1, Utility x1 8611 | -4/Factory | Loaded intel: 249 machine locations 8873 | -4/Factory | Discovered new exit (range 16) 8891 | -4/Factory | Entered Extension 8902 | -4/Extension | Build established: Scavenger-Mutant 8924 | -4/Extension | Rescued a captive Derelict 9094 | -4/Extension | Rescued a captive Derelict 9094 | -4/Extension | Rescued a captive Derelict 9238 | -4/Extension | Rescued a captive Derelict 9239 | -4/Extension | Rescued a captive Derelict 9466 | -4/Extension | Rescued a captive Derelict 9569 | -4/Extension | Rescued A7 9587 | -4/Extension | Rescued a captive Derelict 9690 | -4/Extension | Rescued a captive Derelict 9691 | -4/Extension | Rescued a captive Derelict 9717 | -4/Extension | Rescued a captive Derelict 9718 | -4/Extension | Rescued a captive Derelict 9753 | -4/Extension | Rescued a captive Derelict 9769 | -4/Extension | Energy Cycler disabled 9772 | -4/Extension | Rescued a captive Derelict 9863 | -4/Extension | Discovered new exit (range 10) 9864 | -4/Extension | Discovered new exit (range 6) 9929 | -4/Extension | Entered Cetus 9929 | -4/Cetus | Accompanied by 14 allies (A7) 9934 | -4/Cetus | Acquired a Cetus Manufacturing Module code from A7 9946 | -4/Cetus | Spotted Cetus Guard 9946 | -4/Cetus | Spotted Cetus Guard 9953 | -4/Cetus | Allies destroyed Cetus Guard 9953 | -4/Cetus | Spotted Cetus Guard 9955 | -4/Cetus | Spotted Cetus Guard 9965 | -4/Cetus | Allies destroyed Cetus Guard 9968 | -4/Cetus | Destroyed Cetus Guard 9974 | -4/Cetus | Allies destroyed Cetus Guard 10024 | -4/Cetus | Cetus Manufacturing Module disabled 10063 | -4/Cetus | Escorted A7 to Cetus Mainframe 10078 | -4/Cetus | Discovered new exit (range 15) 10131 | -4/Cetus | Entered Archives 10131 | -4/Archives | Accompanied by 8 allies (A7) 10136 | -4/Archives | Received a hacking code to weaken MAIN.C 10185 | -4/Archives | Discovered new exit (range 15) 10195 | -4/Archives | Discovered new exit (range 15) 10474 | -4/Archives | Entered Hub_04(d) 10474 | -4/Hub_04(d) | Accompanied by 4 allies 10890 | -4/Hub_04(d) | Found Prototype Device 10890 | -4/Hub_04(d) | Identified EM Disruption Field 10901 | -4/Hub_04(d) | Discovered new exit (range 7) 10925 | -4/Hub_04(d) | Entered Research 10925 | -3/Research | Evolved 2 slots: Power x1, Utility x1 11027 | -3/Research | Discovered new exit (range 15) 11044 | -3/Research | Identified exit to Testing 11273 | -3/Research | Spotted B-86 Titan 11337 | -3/Research | Build established: Generator-Mutant 11486 | -3/Research | Destroyed B-86 Titan 11947 | -3/Research | Found Adv. Powered Armor 11949 | -3/Research | Found Adv. Powered Armor 12057 | -3/Research | Found Gamma Bomb Array 12471 | -3/Research | Found Quantum Capacitor 12564 | -3/Research | Fabricated Quantum Reactor (x2) 12911 | -3/Research | Found Prototype Slashing Weapon 12911 | -3/Research | Identified Nanosword 12925 | -3/Research | First assault squad dispatched 13020 | -3/Research | Found Prototype Device 13020 | -3/Research | Identified Exp. Thermal Defense Suite 13120 | -3/Research | Spotted B-86 Titan 13123 | -3/Research | Destroyed 7 combat bots 13250 | -3/Research | Found Prototype Processor 13250 | -3/Research | Identified Exp. Melee Analysis Suite 13412 | -3/Research | Discovered exit to Testing (range 16) 14042 | -3/Research | Identified exit to Research 14274 | -3/Research | Found Prototype Protection 14274 | -3/Research | Identified Centrium Heavy Armor Plating 14289 | -3/Research | Found Centrium Heavy Armor Plating 14291 | -3/Research | Found Centrium Heavy Armor Plating 14595 | -3/Research | Entered another Research area 14595 | -2/Research | Warlord forces began assault on 0b10 14595 | -2/Research | Evolved 2 slots: Utility x2 14705 | -2/Research | Research machine network offline 14982 | -2/Research | Build established: Scavenger-Mutant 15010 | -2/Research | Borebot progress halted 15021 | -2/Research | Discovered new exit (range 12) 15046 | -2/Research | Met up with Warlord 15050 | -2/Research | Spotted Executioner 15079 | -2/Research | Spotted B-90 Cyclops 15244 | -2/Research | Borebot progress halted 15274 | -2/Research | Borebot progress halted 15284 | -2/Research | Spotted Striker 15286 | -2/Research | Destroyed Striker 15497 | -2/Research | Spotted Striker 15580 | -2/Research | Spotted Executioner 15590 | -2/Research | Destroyed Executioner 15595 | -2/Research | Warlord invited to help at Command 15651 | -2/Research | Build established: Generator-Mutant 15761 | -2/Research | Spotted Striker 15776 | -2/Research | Spotted Executioner 15783 | -2/Research | Identified exit to Garrison 15900 | -2/Research | Found Prototype Device 15900 | -2/Research | Identified Adv. Kinecellerator 15935 | -2/Research | Warlord destroyed during the assault 15947 | -2/Research | Discovered new exit (range 11) 15978 | -2/Research | Found Prototype Processor 15978 | -2/Research | Identified Exp. Melee Analysis Suite 16090 | -2/Research | Found Prototype Device 16090 | -2/Research | Identified Vortex Field Projector 16317 | -2/Research | Discovered new exit (range 7) 16352 | -2/Research | Entered Access 16352 | -1/Access | Evolved 2 slots: Propulsion x1, Utility x1 16602 | -1/Access | First assault squad dispatched 17480 | -1/Access | Found Quantum Capacitor 17695 | -1/Access | Found Quantum Capacitor 17806 | -1/Access | Spotted B-99 Colossus 18230 | -1/Access | Destroyed 8 combat bots 18367 | -1/Access | Discovered new exit (range 7) 18468 | -1/Access | Entered Command 18958 | -1/Command | Phase Generator disabled 19260 | -1/Command | First assault squad dispatched 19813 | -1/Command | Crushed by falling debris 19814 | -1/Command | System corruption reached 10% 19814 | -1/Command | Self-destructed Last Messages --------------- 19791_ G-73 Enforcer unfolds itself. 19791_ E-15 Imp unfolds itself. 19792_ K-01 Serf collects debris. 19794_ System corrupted: Matter fused (-6). 19795_ K-01 Serf collects debris. 19795_ Centrium Leg blown off. 19795_ E-15 Imp destroyed. 19795_ K-01 Serf collects debris. 19801_ Acquired 10 matter. 19809_ 4JVSW JL&TTO0LK6EDH|EOQXDLTWI RDUE 19809_ G-73 Enforcer heat damages Myomer Leg, Adv. Heat Sink, Lgt. Quantum Reactor. 19813_ The unstable cave ceiling collapses. 19813_ Crushed by falling debris. 19813_ Thermal Barrier destroyed. 19813_ System corrupted by crushing effect (+5). 19813_ Adv. Core Analyzer destroyed. 19813_ System corrupted by crushing effect (+4). 19813_ Adv. Heat Sink destroyed. 19813_ System corrupted by crushing effect (+5). Map ----- +----------------------------------------------------+ | ??????????????????# ####+#########????# ?????# | | ??????????????????# # #????? ?????# | | ??????????????????# + #????# ?????# | | ??????????????????# # #????# ?????# | | ??????????????????# # #????# ?????# | | ??????????????????# # #????# ?????# | | ??????????????????# # #????# ?????# | | ??????????????????# # #????# #????# | | ??????????????????# # "" #????# ####### # | | ??????????????????# # ""T""" #????# # " | | ??????????????????# # """""g #????# # "" | | ??????????????w???# # g #????# # "" | | ??????????????????# # gg #????# + " | | ??????????????????#!%####+#########????# # | | ??????????????????#=!???# #???########?# # | | ??????????????????#%[???# #???# ### # | | ??????????????????#==#### ##### # | | ??????????????????#! T" ###### | | ??????????????????# g "" #????? | | ??????????????????# ########## #????? | | ??????????????????# #????????# b ########????? | | ??????????????????#! #??#########+#########??????? | | ??????????????????#%!#??# #??????? | | ??????????????????#* #??# #??????? | | ??????????????????# #??# #??????? | | ??????????????????#g ####@ #??????? | | ??????????????????# g # [ #??????? | | ??????????????????#=g## # #??????? | | ??????????????????# g#### #??????? | | ????????????????## g ###;#####;############??????? | | ????????????????# =g #??????????????? | | ????????????????# ! #??????????????? | | ????????????????# == #??????????????? | | ????????????????# = #????########### | | ????????????????# #????# | | ????????????????# #????# | | ????????????????# #????# | | ????????????????###############+#/#????# | | ??????????????????????######### #????# | | ?????????????????????#? # #????# "" | | ?????????????????????? # #????# = """" | | ?????????????????????? "" # ######= """" | | ?????????????????????# """" # +*= ![ | | ?????????????????????# """" # ####%|!=%*[!! | | ?????????????????????# "" + #??# * !%=%!* | | ?????????????????????# # #??#! !** %! | | ?????????????????????# + ##########/### | | ?????????????????????# # % | | ?????????????????????# # | | ?????????????????????# # | +----------------------------------------------------+ Best States ------------- Heat Dissipation 142 Coolant Potential 120 Energy Generation 75 Energy Capacity 1490 Matter Stores 300 Matter Capacity 300 Sight Range 23 Robot Scan Range 20 Terrain Scan Density 10 Jamming Range 16 Armor Coverage 1000 Resistance: KI 25 Resistance: TH 50 Resistance: EM 50 Weapon Shielding 66 Weapon Cycling 30 Evasion (%) 40 Targeting Accuracy 8 Target Analysis 8 Core Analysis 10 Recoil Reduction 2 Particle Charging 15 Offensive Hacking 14 Item Schematics ----------------- Hcp. Storage Unit | -10/Materials | Hacked Robot Schematics ------------------ None Fabricated ------------ E-15 Imp | x2 | -5/Factory | Preloaded Quantum Reactor | x2 | -3/Research | Preloaded Alien Tech Used ----------------- None Achievements -------------- None Challenges ------------ None Game ------ Seed SwarmQuantumLauncher Manual? 0 Play Time 02:23:12 Cumulative 589.7 hours Start 2020.09.18 @ 18:36:34 End 2020.09.18 @ 21:01:37 Sessions 1 Manual Loads 0 Difficulty Rogue Special Mode None Game No. 920 Rogue 920 Adventurer 0 Explorer 0 Win Type - Total 54 Types 35/1/7/8/3/0/0/0/0 Lore% 92 Gallery% 93 Achievement% 82 Wizard Run 0 Options --------- ASCII 1 Keyboard 0 Movement Numpad Keybinds 0 Fullscreen 0 Font 14/SmallcapsGlow Map View 76x50 Tactical HUD 1 Map Filters NONE Filters NONE Steam 1 RUN: 73031061-8f98-4531-bc22-7f78df3fa1b1